bitfinex/quotes_BTCUSD_20250208
["timestamp","ask_amount","ask_price","bid_price","bid_amount"]
[1738991534241,0.85566175,96195.0,96194.0,0.13511582]
[1738991534399,0.85566175,96195.0,96194.0,0.14211582]
[1738991534605,0.53656175,96195.0,96194.0,0.14211582]
[1738991535631,0.53656175,96195.0,96194.0,0.29804982]
[1738991535977,0.51977428,96195.0,96194.0,0.29804982]
[1738991536329,0.52056289,96195.0,96194.0,0.29804982]
[1738991536560,0.53656174,96195.0,96194.0,0.29804982]
[1738991537291,0.53556174,96195.0,96194.0,0.29104982]
[1738991537794,0.53656174,96195.0,96194.0,0.29804982]
[1738991539462,0.53556174,96195.0,96194.0,0.29104982]
[1738991540630,0.53556174,96195.0,96194.0,0.31404982]
[1738991540872,0.53656174,96195.0,96194.0,0.32104982]
[1738991541655,0.53556174,96195.0,96194.0,0.46404982]
[1738991541858,0.53656174,96195.0,96194.0,0.47304982]
[1738991545926,0.53756174,96195.0,96194.0,0.47304982]
[1738991546715,0.53756174,96195.0,96194.0,0.55064982]
[1738991555331,0.53756174,96195.0,96194.0,0.47304982]
[1738991563109,0.53756174,96195.0,96194.0,0.57174982]
[1738991563263,0.53756174,96195.0,96194.0,0.62034982]
[1738991563873,0.53656174,96195.0,96194.0,0.61134982]
[1738991564078,0.53656174,96195.0,96194.0,0.62034982]
[1738991564290,0.53756174,96195.0,96194.0,0.62034982]
[1738991564778,0.53656174,96195.0,96194.0,0.62034982]
[1738991565173,0.53756174,96195.0,96194.0,0.62934982]
[1738991566214,0.43360674,96195.0,96194.0,0.62934982]
[1738991566416,0.39202474,96195.0,96194.0,0.62934982]
[1738991566620,0.35044274,96195.0,96194.0,0.62934982]
[1738991566796,0.32965174,96195.0,96194.0,0.45904982]
[1738991566996,0.32965174,96195.0,96194.0,0.46668982]
[1738991567667,0.32965174,96195.0,96194.0,0.48204982]
[1738991567882,0.32965174,96195.0,96194.0,0.48964982]
[1738991568610,0.32965174,96195.0,96194.0,0.48204982]
[1738991568735,0.32965174,96195.0,96194.0,0.48968982]
[1738991569817,0.32965174,96195.0,96194.0,0.49968982]
[1738991570596,0.32965174,96195.0,96194.0,0.48968982]
[1738991570797,0.32965174,96195.0,96194.0,0.49968982]
[1738991573162,0.32965174,96195.0,96194.0,0.30904982]
[1738991573572,0.32965174,96195.0,96194.0,0.33204982]
[1738991574215,0.32965174,96195.0,96194.0,0.48204982]
[1738991575140,0.32965174,96195.0,96194.0,0.48968982]
[1738991575782,0.32965174,96195.0,96194.0,0.48204982]
[1738991576510,0.31286428,96195.0,96194.0,0.48204982]
[1738991576834,0.32883674,96195.0,96194.0,0.48204982]
[1738991580106,0.32967941,96195.0,96194.0,0.48204982]
[1738991581609,0.32867941,96195.0,96194.0,0.47304982]
[1738991581810,0.32767941,96195.0,96194.0,0.46404982]
[1738991582058,0.32867941,96195.0,96194.0,0.47304982]
[1738991582212,0.32967941,96195.0,96194.0,0.48104982]
[1738991584941,0.32967941,96195.0,96194.0,0.56414982]
[1738991588019,0.32967941,96195.0,96194.0,0.57414982]
[1738991588504,0.31286428,96195.0,96194.0,0.57414982]
[1738991588657,0.19977024,96195.0,96194.0,0.57414982]
[1738991588859,0.18295901,96195.0,96194.0,0.57414982]
[1738991596737,0.18295901,96195.0,96194.0,0.58414982]
[1738991601783,0.18295901,96195.0,96194.0,0.59170982]
[1738991607586,0.18295901,96195.0,96194.0,0.58170982]
[1738991608743,0.18295901,96195.0,96194.0,0.49860982]
[1738991623579,0.18295901,96195.0,96194.0,0.49104982]
[1738991623744,0.18295901,96195.0,96194.0,0.49860982]
[1738991632191,0.18295901,96195.0,96194.0,0.48860982]
[1738991632397,0.18295901,96195.0,96194.0,0.49860982]
[1738991635972,0.18295901,96195.0,96194.0,0.48860982]
[1738991636181,0.18295901,96195.0,96194.0,0.49860982]
[1738991636583,0.18295901,96195.0,96194.0,0.48860982]
[1738991636795,0.18295901,96195.0,96194.0,0.49860982]
[1738991642687,0.18295901,96195.0,96194.0,0.48860982]
[1738991642887,0.18295901,96195.0,96194.0,0.49860982]
[1738991650077,0.18295901,96195.0,96194.0,0.48104982]
[1738991650380,0.24628876,96195.0,96194.0,0.33856982]
[1738991652384,0.24628876,96195.0,96194.0,0.30804982]
[1738991652553,0.24628876,96195.0,96194.0,0.46556982]
[1738991653521,0.24628876,96195.0,96194.0,0.48856982]
[1738991657522,0.24628876,96195.0,96194.0,0.48966762]
[1738991661532,0.19978876,96195.0,96194.0,0.48966762]
[1738991663351,0.19978876,96195.0,96194.0,0.49966762]
[1738991666955,0.19978876,96195.0,96194.0,0.59310826]
[1738991667160,0.18295901,96195.0,96194.0,0.59310826]
[1738991670140,0.18254579,96195.0,96194.0,0.58310826]
[1738991670485,0.18154579,96195.0,96194.0,0.58510826]
[1738991670639,0.18054579,96195.0,96194.0,0.56610826]
[1738991670847,0.18054579,96195.0,96194.0,0.49866762]
[1738991670848,0.18254579,96195.0,96194.0,0.49866762]
[1738991671201,0.18254579,96195.0,96194.0,0.49166762]
[1738991671344,0.18254579,96195.0,96194.0,0.48266762]
[1738991671345,0.18154579,96195.0,96194.0,0.48266762]
[1738991672762,0.18254579,96195.0,96194.0,0.49166762]
[1738991673153,0.18354579,96195.0,96194.0,0.49866762]
[1738991674096,0.18244799,96195.0,96194.0,0.60756982]
[1738991674504,0.18244799,96195.0,96194.0,0.70101046]
[1738991678352,0.18244799,96195.0,96194.0,0.60756982]
[1738991682775,0.18226634,96195.0,96194.0,0.60756982]
[1738991700986,0.3201,96216.0,96215.0,0.3159]
[1738991701217,0.00022428,96218.0,96217.0,0.328897]
[1738991701334,0.00022428,96218.0,96217.0,0.46381159]
[1738991702841,0.00122428,96218.0,96217.0,0.47081159]
[1738991703046,0.00122428,96218.0,96217.0,0.48124637]
[1738991703917,0.00122428,96218.0,96217.0,0.49024637]
[1738991704063,0.00122428,96218.0,96217.0,0.51104553]
[1738991710182,0.00122428,96218.0,96217.0,0.62104553]
[1738991710384,0.00113232,96218.0,96217.0,0.62104553]
[1738991711107,0.00113232,96218.0,96217.0,0.61204553]
[1738991711308,0.00013232,96218.0,96217.0,0.60504553]
[1738991711513,0.00113232,96218.0,96217.0,0.62304553]
[1738991712053,0.00013232,96218.0,96217.0,0.61404553]
[1738991712683,0.00113232,96218.0,96217.0,0.62304553]
[1738991712906,0.00113232,96218.0,96217.0,0.61404553]
[1738991713314,0.00113232,96218.0,96217.0,0.62304553]
[1738991726152,0.00113232,96218.0,96217.0,0.49004553]
[1738991726312,0.00113232,96218.0,96217.0,0.49756553]
[1738991727076,0.00113232,96218.0,96217.0,0.61374233]
[1738991727908,0.00113232,96218.0,96217.0,0.61384913]
[1738991729018,0.00113232,96218.0,96217.0,0.58552997]
[1738991729329,0.00113232,96218.0,96217.0,0.59308997]
[1738991730228,0.00113232,96218.0,96217.0,0.58408997]
[1738991730788,0.00013232,96218.0,96217.0,0.48191317]
[1738991731385,0.00013232,96218.0,96217.0,0.49991317]
[1738991732160,0.00013232,96218.0,96217.0,0.48191317]
[1738991732368,0.00013232,96218.0,96217.0,0.49091317]
[1738991732665,0.00013232,96218.0,96217.0,0.49991317]
[1738991732869,0.51979232,96218.0,96217.0,0.49091317]
[1738991733069,0.53776676,96218.0,96217.0,0.49991317]
[1738991740745,0.53776676,96218.0,96217.0,0.49091317]
[1738991740956,0.53776676,96218.0,96217.0,0.49991317]
[1738991741157,0.53776676,96218.0,96217.0,0.49091317]
[1738991741567,0.53776676,96218.0,96217.0,0.49991317]
[1738991748123,0.61616676,96218.0,96217.0,0.49235317]
[1738991748362,0.66286676,96218.0,96217.0,0.49991317]
[1738991748968,0.66286676,96218.0,96217.0,0.49235317]
[1738991749301,0.66286676,96218.0,96217.0,0.49991317]
[1738991753810,0.66375916,96218.0,96217.0,0.49991317]
[1738991754467,0.98385916,96218.0,96217.0,0.49991317]
[1738991762957,0.98385916,96218.0,96217.0,0.34991317]
[1738991764209,0.98385916,96218.0,96217.0,0.34235317]
[1738991764380,0.98385916,96218.0,96217.0,0.30891839]
[1738991765404,0.98385916,96218.0,96217.0,0.15302139]
[1738991766387,0.98385916,96218.0,96217.0,0.12061045]
[1738991766832,0.98385916,96218.0,96217.0,0.10261045]
[1738991767001,0.98385916,96218.0,96217.0,0.10661045]
[1738991767196,0.98385916,96218.0,96217.0,0.11261045]
[1738991767894,0.98385916,96218.0,96217.0,0.10861045]
[1738991768300,0.98385916,96218.0,96217.0,0.10661045]
[1738991768501,0.98385916,96218.0,96217.0,0.10261045]
[1738991768742,0.98385916,96218.0,96217.0,0.10861045]
[1738991769158,0.98385916,96218.0,96217.0,0.10261045]
[1738991769557,0.98385916,96218.0,96217.0,0.10761045]
[1738991770273,0.98385916,96218.0,96217.0,0.10261045]
[1738991770679,0.98385916,96218.0,96217.0,0.10461045]
[1738991771079,0.98385916,96218.0,96217.0,0.10261045]
[1738991771283,0.98385916,96218.0,96217.0,0.10361045]
[1738991771814,0.98385916,96218.0,96217.0,0.10761045]
[1738991772318,0.98385916,96218.0,96217.0,0.10361045]
[1738991772451,0.98385916,96218.0,96217.0,0.10661045]
[1738991772952,0.98385916,96218.0,96217.0,0.10361045]
[1738991773148,0.98385916,96218.0,96217.0,0.10561045]
[1738991773350,0.98385916,96218.0,96217.0,0.10461045]
[1738991773757,0.98385916,96218.0,96217.0,0.10661045]
[1738991774063,0.98385916,96218.0,96217.0,0.10461045]
[1738991774277,0.98385916,96218.0,96217.0,0.10561045]
[1738991790118,0.98385916,96218.0,96217.0,0.10261045]
[1738991790310,0.98385916,96218.0,96217.0,0.10361045]
[1738991790520,0.98385916,96218.0,96217.0,0.10461045]
[1738991790909,1.13975416,96218.0,96217.0,0.10461045]
[1738991791253,1.13975416,96218.0,96217.0,0.0021068]
[1738991794655,1.13975416,96218.0,96217.0,0.0001068]
[1738991794878,1.13975416,96218.0,96217.0,0.0011068]
[1738991799085,1.14808362,96218.0,96217.0,0.0011068]
[1738991801006,1.25748362,96218.0,96217.0,0.0011068]
[1738991804052,1.25748362,96218.0,96217.0,0.0001068]
[1738991804256,1.25948362,96218.0,96217.0,0.0001068]
[1738991804516,1.26348362,96218.0,96217.0,0.0001068]
[1738991806891,1.26148362,96218.0,96217.0,0.0001068]
[1738991807223,1.25948362,96218.0,96217.0,0.0001068]
[1738991807683,1.26348362,96218.0,96217.0,0.0001068]
[1738991812302,1.25515416,96218.0,96217.0,0.0001068]
[1738991813796,0.86475916,96218.0,96217.0,0.10261045]
[1738991814847,0.86075916,96218.0,96217.0,0.10261045]
[1738991815166,0.86075916,96218.0,96217.0,0.25850745]
[1738991815374,0.85875916,96218.0,96217.0,0.25850745]
[1738991815528,0.85875916,96218.0,96217.0,0.3958205]
[1738991816165,0.53865916,96218.0,96217.0,0.5458205]
[1738991816363,0.53865916,96218.0,96217.0,0.5947205]
[1738991816539,0.53865916,96218.0,96217.0,0.5957205]
[1738991817122,0.53865916,96218.0,96217.0,0.5947205]
[1738991817456,0.53865916,96218.0,96217.0,0.5987205]
[1738991818111,0.53865916,96218.0,96217.0,0.6047205]
[1738991818282,0.53865916,96218.0,96217.0,0.6107205]
[1738991818857,0.53865916,96218.0,96217.0,0.6047205]
[1738991819477,0.53865916,96218.0,96217.0,0.6137205]
[1738991822395,0.53865916,96218.0,96217.0,0.6047205]
[1738991822797,0.53865916,96218.0,96217.0,0.6137205]
[1738991823003,0.53865916,96218.0,96217.0,0.6037205]
[1738991823402,0.53865916,96218.0,96217.0,0.5947205]
[1738991823782,0.53865916,96218.0,96217.0,0.6037205]
[1738991824395,0.53865916,96218.0,96217.0,0.6127205]
[1738991824813,0.53865916,96218.0,96217.0,0.6217205]
[1738991825797,0.53865916,96218.0,96217.0,0.6127205]
[1738991826142,0.53865916,96218.0,96217.0,0.6037205]
[1738991826341,0.53865916,96218.0,96217.0,0.6127205]
[1738991826503,0.53865916,96218.0,96217.0,0.6037205]
[1738991826705,0.53865916,96218.0,96217.0,0.5947205]
[1738991826928,0.53865916,96218.0,96217.0,0.6037205]
[1738991827101,0.53865916,96218.0,96217.0,0.5947205]
[1738991827332,0.53865916,96218.0,96217.0,0.7047205]
[1738991827540,0.53865916,96218.0,96217.0,0.7137205]
[1738991827968,0.53865916,96218.0,96217.0,0.7227205]
[1738991828606,0.53865916,96218.0,96217.0,0.7137205]
[1738991828797,0.53865916,96218.0,96217.0,0.7227205]
[1738991828961,0.53865916,96218.0,96217.0,0.7137205]
[1738991829165,0.53865916,96218.0,96217.0,0.7227205]
[1738991829751,0.53865916,96218.0,96217.0,0.6127205]
[1738991831365,0.53865916,96218.0,96217.0,0.6227205]
[1738991832344,0.53865916,96218.0,96217.0,0.6127205]
[1738991833665,0.53865916,96218.0,96217.0,0.6227205]
[1738991833865,0.53865916,96218.0,96217.0,0.6127205]
[1738991840897,0.53865916,96218.0,96217.0,0.4895205]
[1738991841707,0.53865916,96218.0,96217.0,0.4665205]
[1738991843241,0.53865916,96218.0,96217.0,0.3165205]
[1738991843577,0.53865916,96218.0,96217.0,0.3395205]
[1738991847920,0.53865916,96218.0,96217.0,0.4805205]
[1738991848305,0.53865916,96218.0,96217.0,0.4895205]
[1738991848843,0.53865916,96218.0,96217.0,0.4805205]
[1738991849054,0.53865916,96218.0,96217.0,0.4715205]
[1738991849352,0.53865916,96218.0,96217.0,0.4805205]
[1738991849553,0.53865916,96218.0,96217.0,0.4715205]
[1738991849994,0.53865916,96218.0,96217.0,0.4805205]
[1738991850281,0.53865916,96218.0,96217.0,0.4895205]
[1738991850440,0.53865916,96218.0,96217.0,0.4805205]
[1738991851486,0.53865916,96218.0,96217.0,0.4715205]
[1738991851823,0.53865916,96218.0,96217.0,0.4805205]
[1738991852195,0.53865916,96218.0,96217.0,0.4895205]
[1738991852782,0.53865916,96218.0,96217.0,0.4805205]
[1738991853212,0.53865916,96218.0,96217.0,0.4715205]
[1738991853388,0.53865916,96218.0,96217.0,0.4805205]
[1738991854355,0.53865916,96218.0,96217.0,0.4895205]
[1738991855456,0.53865916,96218.0,96217.0,0.4805205]
[1738991855657,0.53865916,96218.0,96217.0,0.4895205]
[1738991855833,0.53865916,96218.0,96217.0,0.4805205]
[1738991856274,0.53865916,96218.0,96217.0,0.4895205]
[1738991858274,0.53865916,96218.0,96217.0,0.4805205]
[1738991858898,0.53865916,96218.0,96217.0,0.4715205]
[1738991859276,0.53865916,96218.0,96217.0,0.4805205]
[1738991859629,0.53865916,96218.0,96217.0,0.4895205]
[1738991862005,0.53865916,96218.0,96217.0,0.4805205]
[1738991862410,0.53865916,96218.0,96217.0,0.4895205]
[1738991862569,0.53865916,96218.0,96217.0,0.4805205]
[1738991862973,0.53865916,96218.0,96217.0,0.4895205]
[1738991867811,0.53865916,96218.0,96217.0,0.4819205]
[1738991868015,0.90625916,96218.0,96217.0,0.1530235]
[1738991868221,0.98375916,96218.0,96217.0,0.1530235]
[1738991868404,0.98375916,96218.0,96217.0,0.12061045]
[1738991868951,0.98375916,96218.0,96217.0,0.11161045]
[1738991869155,0.98375916,96218.0,96217.0,0.10261045]
[1738991869355,0.98375916,96218.0,96217.0,0.11261045]
[1738991869557,0.98375916,96218.0,96217.0,0.11161045]
[1738991869799,0.98375916,96218.0,96217.0,0.10261045]
[1738991870074,0.98375916,96218.0,96217.0,0.10461045]
[1738991870238,0.98375916,96218.0,96217.0,0.10561045]
[1738991870439,0.98375916,96218.0,96217.0,0.10461045]
[1738991870614,0.98375916,96218.0,96217.0,0.10261045]
[1738991870811,0.98375916,96218.0,96217.0,0.10461045]
[1738991871693,0.98375916,96218.0,96217.0,0.10561045]
[1738991872987,0.98375916,96218.0,96217.0,0.10261045]
[1738991873114,0.98375916,96218.0,96217.0,0.10461045]
[1738991873324,0.98375916,96218.0,96217.0,0.10561045]
[1738991874111,0.98375916,96218.0,96217.0,0.10361045]
[1738991874621,0.98375916,96218.0,96217.0,0.10261045]
[1738991875105,0.98375916,96218.0,96217.0,0.10361045]
[1738991875636,0.98375916,96218.0,96217.0,0.10561045]
[1738991881473,0.98375916,96218.0,96217.0,0.10261045]
[1738991881886,1.13965416,96218.0,96217.0,0.10261045]
[1738991882071,0.98375916,96218.0,96217.0,0.10261045]
[1738991882935,0.98475916,96218.0,96217.0,0.10261045]
[1738991884421,1.14065416,96218.0,96217.0,0.10261045]
[1738991884616,1.14065416,96218.0,96217.0,0.0001068]
[1738991885833,1.14265416,96218.0,96217.0,0.0001068]
[1738991886339,1.14165416,96218.0,96217.0,0.0001068]
[1738991886516,1.14365416,96218.0,96217.0,0.0001068]
[1738991891847,1.1519551,96218.0,96217.0,0.0001068]
[1738991895533,1.3019551,96218.0,96217.0,0.0001068]
[1738991896229,1.3119551,96218.0,96217.0,0.0001068]
[1738991896610,1.32524668,96218.0,96217.0,0.0001068]
[1738991896813,1.49656603,96218.0,96217.0,0.0001068]
[1738991897009,1.43464668,96218.0,96217.0,0.0001068]
[1738991897808,1.43264668,96218.0,96217.0,0.0001068]
[1738991898011,1.44064668,96218.0,96217.0,0.0001068]
[1738991898244,0.429418,96204.0,96203.0,0.01666667]
[1738991898412,0.949078,96204.0,96203.0,0.01666667]
[1738991898642,0.96791974,96204.0,96203.0,0.01666667]
[1738991899432,0.97091974,96204.0,96203.0,0.01666667]
[1738991899937,1.00550974,96204.0,96203.0,0.01666667]
[1738991901171,1.01599787,96204.0,96203.0,0.01666667]
[1738991901576,1.01999787,96204.0,96203.0,0.01666667]
[1738991902256,1.01999787,96204.0,96203.0,0.01677347]
[1738991902865,1.34009787,96204.0,96203.0,0.01677347]
[1738991905165,1.36072729,96204.0,96203.0,0.01677347]
[1738991905935,1.35772729,96204.0,96203.0,0.01677347]
[1738991906135,1.35872729,96204.0,96203.0,0.01677347]
[1738991906550,1.35472729,96204.0,96203.0,0.01677347]
[1738991906756,1.36472729,96204.0,96203.0,0.01677347]
[1738991907077,1.36572729,96204.0,96203.0,0.01677347]
[1738991907436,1.36472729,96204.0,96203.0,0.01677347]
[1738991907859,1.35272981,96204.0,96203.0,0.01677347]
[1738991910603,1.45523346,96204.0,96203.0,0.01677347]
[1738991910804,1.35272981,96204.0,96203.0,0.01677347]
[1738991911028,1.46212981,96204.0,96203.0,0.01677347]
[1738991911850,0.305933,96195.0,96194.0,0.00020123]
[1738991912057,1.37891953,96195.0,96194.0,0.00020123]
[1738991912264,0.155978,96167.0,96166.0,0.0080097]
[1738991912463,0.98000247,96167.0,96166.0,0.0080097]
[1738991912835,0.97896453,96167.0,96166.0,0.0080097]
[1738991914050,0.97896453,96167.0,96166.0,0.00493916]
[1738991915485,0.97996453,96167.0,96166.0,0.00493916]
[1738991915640,1.17946453,96167.0,96166.0,0.00493916]
[1738991915834,1.18022913,96167.0,96166.0,0.00493916]
[1738991916059,1.19055787,96167.0,96166.0,0.00493916]
[1738991916940,1.19355787,96167.0,96166.0,0.00493916]
[1738991917318,1.19055787,96167.0,96166.0,0.00493916]
[1738991917538,1.18955787,96167.0,96166.0,0.00493916]
[1738991917768,1.19755787,96167.0,96166.0,0.00593916]
[1738991917981,1.20155787,96167.0,96166.0,0.00593916]
[1738991918183,1.19755787,96167.0,96166.0,0.00593916]
[1738991918578,1.22607688,96167.0,96166.0,0.00693916]
[1738991919686,1.31907688,96167.0,96166.0,0.00693916]
[1738991919866,1.33710263,96167.0,96166.0,0.00693916]
[1738991920463,1.32710263,96167.0,96166.0,0.00693916]
[1738991920668,1.31910263,96167.0,96166.0,0.00493916]
[1738991920871,0.15599,96160.0,96158.0,0.0124391]
[1738991921185,0.69547829,96160.0,96158.0,0.0124391]
[1738991921365,0.69444035,96160.0,96158.0,0.0124391]
[1738991921972,0.69444035,96160.0,96159.0,0.11290105]
[1738991922171,0.54055855,96160.0,96159.0,0.11290105]
[1738991922371,0.54055855,96160.0,96159.0,0.18870105]
[1738991922742,0.54055855,96160.0,96159.0,0.23710105]
[1738991923349,0.54055855,96160.0,96159.0,0.11290105]
[1738991924325,0.53855855,96160.0,96159.0,0.11290105]
[1738991924652,0.54055855,96160.0,96159.0,0.11290105]
[1738991925206,0.54155855,96160.0,96159.0,0.11290105]
[1738991925434,0.54155855,96160.0,96159.0,0.11300785]
[1738991926770,0.83994592,96160.0,96159.0,0.11300785]
[1738991930140,0.83994592,96160.0,96159.0,0.41799885]
[1738991930549,0.82015557,96160.0,96159.0,0.41799885]
[1738991930776,0.82015557,96160.0,96159.0,0.42499885]
[1738991930953,0.83719741,96160.0,96159.0,0.42499885]
[1738991931493,0.83719741,96160.0,96159.0,0.41799885]
[1738991931925,0.83893733,96160.0,96159.0,0.42599885]
[1738991932698,0.83693733,96160.0,96159.0,0.41799885]
[1738991932916,0.83893733,96160.0,96159.0,0.43499885]
[1738991933321,0.83793733,96160.0,96159.0,0.42599885]
[1738991933486,0.83893733,96160.0,96159.0,0.41199885]
[1738991934231,0.83793733,96160.0,96159.0,0.40399885]
[1738991934387,0.83893733,96160.0,96159.0,0.41199885]
[1738991934584,0.83793733,96160.0,96159.0,0.40299885]
[1738991934790,0.83693733,96160.0,96159.0,0.39499885]
[1738991935187,0.83793733,96160.0,96159.0,0.40299885]
[1738991936089,0.83893733,96160.0,96159.0,0.41199885]
[1738991941528,0.83893733,96160.0,96159.0,0.36609885]
[1738991942410,0.83893733,96160.0,96159.0,0.38909885]
[1738991942578,0.83893733,96160.0,96159.0,0.62076197]
[1738991944925,0.83893733,96160.0,96159.0,0.6311802]
[1738991945439,0.83693733,96160.0,96159.0,0.6141802]
[1738991945646,0.49795196,96160.0,96159.0,0.6231802]
[1738991945968,0.49895196,96160.0,96159.0,0.6321802]
[1738991946171,0.43655496,96160.0,96159.0,0.6321802]
[1738991948073,0.37415796,96160.0,96159.0,0.6321802]
[1738991948261,0.33255996,96160.0,96159.0,0.6321802]
[1738991948564,0.24936396,96160.0,96159.0,0.6321802]
[1738991949151,0.22856496,96160.0,96159.0,0.6321802]
[1738991950260,0.22756496,96160.0,96159.0,0.6231802]
[1738991950451,0.22656496,96160.0,96159.0,0.6141802]
[1738991950878,0.22656496,96160.0,96159.0,0.6231802]
[1738991951637,0.22656496,96160.0,96159.0,0.6321802]
[1738991952460,0.20576596,96160.0,96159.0,0.6321802]
[1738991952654,0.1869842,96160.0,96159.0,0.6321802]
[1738991954751,0.18652226,96160.0,96159.0,0.6321802]
[1738991961270,0.18674654,96160.0,96159.0,0.6402202]
[1738991962425,0.18674654,96160.0,96159.0,0.6321802]
[1738991962648,0.18674654,96160.0,96159.0,0.6402202]
[1738991965551,0.18674654,96160.0,96159.0,0.6413202]
[1738991966391,0.18674654,96160.0,96159.0,0.5038802]
[1738991966616,0.18674654,96160.0,96159.0,0.32846197]
[1738991967066,0.20556979,96160.0,96159.0,0.50146197]
[1738991967519,0.20556979,96160.0,96159.0,0.49246197]
[1738991967676,0.20556979,96160.0,96159.0,0.48346197]
[1738991967899,0.20556979,96160.0,96159.0,0.50146197]
[1738991968358,0.50395716,96160.0,96159.0,0.49250197]
[1738991968543,0.50395716,96160.0,96159.0,0.50150197]
[1738991969175,0.50395716,96160.0,96159.0,0.51050197]
[1738991969684,0.50395716,96160.0,96159.0,0.50150197]
[1738991970146,0.50395716,96160.0,96159.0,0.48350197]
[1738991970391,0.50395716,96160.0,96159.0,0.49250197]
[1738991970633,0.50395716,96160.0,96159.0,0.48350197]
[1738991970897,0.50395716,96160.0,96159.0,0.49250197]
[1738991971138,0.50395716,96160.0,96159.0,0.50150197]
[1738991971337,0.50395716,96160.0,96159.0,0.58120197]
[1738991971537,0.50395716,96160.0,96159.0,0.50150197]
[1738991972528,0.50395716,96160.0,96159.0,0.51050197]
[1738991972865,0.50395716,96160.0,96159.0,0.48350197]
[1738991973281,0.50395716,96160.0,96159.0,0.49250197]
[1738991973483,0.50395716,96160.0,96159.0,0.48350197]
[1738991974004,0.50395716,96160.0,96159.0,0.49250197]
[1738991974328,0.50395716,96160.0,96159.0,0.50150197]
[1738991974690,0.50395716,96160.0,96159.0,0.49250197]
[1738991975721,0.50395716,96160.0,96159.0,0.61620197]
[1738991976415,0.50395716,96160.0,96159.0,0.62520197]
[1738991977103,0.50395716,96160.0,96159.0,0.60816197]
[1738991977310,0.50395716,96160.0,96159.0,0.55856197]
[1738991977462,0.50285716,96160.0,96159.0,0.55746197]
[1738991977663,0.50285716,96160.0,96159.0,0.57546197]
[1738991977866,0.50285716,96160.0,96159.0,0.49136197]
[1738991978116,0.50285716,96160.0,96159.0,0.48236197]
[1738991978226,0.50285716,96160.0,96159.0,0.49136197]
[1738991978432,0.50285716,96160.0,96159.0,0.50036197]
[1738991979225,0.50285716,96160.0,96159.0,0.50040197]
[1738991980164,0.20446979,96160.0,96159.0,0.50040197]
[1738991982568,0.18564654,96160.0,96159.0,0.50040197]
[1738991998194,0.18564654,96160.0,96159.0,0.49236197]
[1738991998597,0.18564654,96160.0,96159.0,0.47756197]
[1738991999294,0.18564654,96160.0,96159.0,0.49236197]
[1738991999492,0.18564654,96160.0,96159.0,0.50060197]
[1738992000193,0.18564654,96160.0,96159.0,0.49236197]
[1738992000396,0.18564654,96160.0,96159.0,0.47756197]
[1738992001526,0.18564654,96160.0,96159.0,0.50056197]
[1738992002348,0.26284654,96160.0,96159.0,0.49236197]
[1738992002851,0.33116743,96160.0,96159.0,0.46936197]
[1738992003290,0.6295548,96160.0,96159.0,0.31936197]
[1738992003494,0.6295548,96160.0,96159.0,0.16337097]
[1738992004035,0.6295548,96160.0,96159.0,0.04136312]
[1738992004233,0.6295548,96160.0,96155.0,0.0001068]
[1738992004234,0.1267,96159.0,96155.0,0.0001068]
[1738992004432,0.282696,96156.0,96155.0,0.0001068]
[1738992004637,0.46801006,96156.0,96155.0,0.0001068]
[1738992004952,0.31279207,96156.0,96155.0,0.0001068]
[1738992005168,0.46878807,96156.0,96155.0,0.0001068]
[1738992005971,0.34659578,96156.0,96155.0,0.0001068]
[1738992006529,0.34659578,96156.0,96155.0,0.0061068]
[1738992006663,0.34659578,96156.0,96155.0,0.10861045]
[1738992007067,0.34759578,96156.0,96155.0,0.10861045]
[1738992007290,0.34759578,96156.0,96155.0,0.10261045]
[1738992007485,0.32179222,96156.0,96155.0,0.10261045]
[1738992007692,0.32379222,96156.0,96155.0,0.10261045]
[1738992009104,0.31579207,96156.0,96155.0,0.10261045]
[1738992009765,0.33383256,96156.0,96155.0,0.10261045]
[1738992010062,0.63221993,96156.0,96155.0,0.10261045]
[1738992011227,0.63121993,96156.0,96155.0,0.10261045]
[1738992012702,0.63221993,96156.0,96155.0,0.10261045]
[1738992012876,0.78621593,96156.0,96155.0,0.10261045]
[1738992013248,0.78921593,96156.0,96155.0,0.10261045]
[1738992013690,0.78904347,96156.0,96155.0,0.10261045]
[1738992013890,0.78904347,96156.0,96155.0,0.0001068]
[1738992016442,0.63304747,96156.0,96155.0,0.10261045]
[1738992019953,0.63327175,96156.0,96155.0,0.10261045]
[1738992021510,0.63327175,96156.0,96155.0,0.0001068]
[1738992022228,0.63327175,96156.0,96155.0,0.10261045]
[1738992023441,0.63227175,96156.0,96155.0,0.10261045]
[1738992023651,0.55324421,96156.0,96155.0,0.10261045]
[1738992023825,0.55624421,96156.0,96155.0,0.10261045]
[1738992025542,0.55524421,96156.0,96155.0,0.10261045]
[1738992025884,0.55324421,96156.0,96155.0,0.10261045]
[1738992026229,0.55624421,96156.0,96155.0,0.10261045]
[1738992029981,0.50674421,96156.0,96155.0,0.10261045]
[1738992031130,0.50374421,96156.0,96155.0,0.10261045]
[1738992031327,0.50374421,96156.0,96155.0,0.10661045]
[1738992031508,0.50274421,96156.0,96155.0,0.10661045]
[1738992032071,0.50274421,96156.0,96155.0,0.11461045]
[1738992032429,0.50274421,96156.0,96155.0,0.10661045]
[1738992032666,0.50274421,96156.0,96155.0,0.11161045]
[1738992032991,0.50274421,96156.0,96155.0,0.10761045]
[1738992033112,0.50274421,96156.0,96155.0,0.10961045]
[1738992038171,0.50274421,96156.0,96155.0,0.10461045]
[1738992038584,0.50274421,96156.0,96155.0,0.10761045]
[1738992039803,0.50274421,96156.0,96155.0,0.10561045]
[1738992040008,0.50274421,96156.0,96155.0,0.10661045]
[1738992040414,0.50274421,96156.0,96155.0,0.13907526]
[1738992041991,0.58134421,96156.0,96155.0,0.13907526]
[1738992042434,0.58134421,96156.0,96155.0,0.10661045]
[1738992043254,0.58134421,96156.0,96155.0,0.13907713]
[1738992043750,0.58134421,96156.0,96155.0,0.10661045]
[1738992044354,0.58134421,96156.0,96155.0,0.13907742]
[1738992044910,0.50274421,96156.0,96155.0,0.13907742]
[1738992046917,0.50274421,96156.0,96155.0,0.10661045]
[1738992047355,0.65874021,96156.0,96155.0,0.10661045]
[1738992047544,0.50274421,96156.0,96155.0,0.10661045]
[1738992048963,0.50274421,96156.0,96155.0,0.13907659]
[1738992051271,0.50274421,96156.0,96155.0,0.29507459]
[1738992052428,0.50274421,96156.0,96155.0,0.55743365]
[1738992053313,0.50274421,96156.0,96155.0,0.55343365]
[1738992053732,0.50274421,96156.0,96155.0,0.56043365]
[1738992054161,0.50274421,96156.0,96155.0,0.56443365]
[1738992054489,0.20435684,96156.0,96155.0,0.56043365]
[1738992054614,0.20435684,96156.0,96155.0,0.55343365]
[1738992054960,0.2050702,96156.0,96155.0,0.56043365]
[1738992055513,0.20576468,96156.0,96155.0,0.61003365]
[1738992055705,0.18553834,96156.0,96155.0,0.61003365]
[1738992056008,0.18553834,96156.0,96155.0,0.61303365]
[1738992056185,0.18553834,96156.0,96155.0,0.60603365]
[1738992056417,0.18553834,96156.0,96155.0,0.60303365]
[1738992056593,0.18553834,96156.0,96155.0,0.61703365]
[1738992056773,0.12313934,96156.0,96155.0,0.61703365]
[1738992056983,0.08154134,96156.0,96155.0,0.61845448]
[1738992057300,8.2e-07,96160.0,96159.0,0.01]